bitfinex/quotes_BTCUSD_20251224
["timestamp","ask_amount","ask_price","bid_price","bid_amount"]
[1766540135951,0.01140979,87644.0,87638.0,0.01089]
[1766540136460,0.01140992,87643.0,87638.0,0.01089]
[1766540136766,0.01141005,87642.0,87638.0,0.01089]
[1766540136964,0.01140992,87643.0,87638.0,0.01089]
[1766540137166,0.06845773,87646.0,87638.0,0.01089]
[1766540137365,0.01140953,87646.0,87638.0,0.1302]
[1766540138271,0.01140953,87646.0,87638.0,0.14161057]
[1766540138422,0.0228494,87647.0,87638.0,0.14161057]
[1766540138893,0.01140953,87646.0,87638.0,0.1302]
[1766540140209,0.01140953,87646.0,87638.0,0.14161057]
[1766540141018,0.01140953,87646.0,87638.0,0.1302]
[1766540141836,0.0228494,87647.0,87638.0,0.14161057]
[1766540142858,0.01140914,87649.0,87647.0,0.000549]
[1766540143065,0.01140901,87650.0,87647.0,0.000549]
[1766540143202,0.01144,87652.0,87647.0,0.000549]
[1766540143402,0.01144,87652.0,87644.0,0.11931]
[1766540143403,0.02284875,87652.0,87644.0,0.11931]
[1766540143599,0.01144,87652.0,87644.0,0.13071979]
[1766540143800,0.02733112,87655.0,87647.0,0.1307194]
[1766540144020,0.02733112,87655.0,87650.0,0.13071901]
[1766540144182,0.02733112,87655.0,87650.0,0.11931]
[1766540145664,0.02733112,87655.0,87650.0,0.13071901]
[1766540146493,0.02733112,87655.0,87650.0,0.11931]
[1766540146660,0.02733112,87655.0,87650.0,0.13071901]
[1766540147067,0.02733112,87655.0,87650.0,0.11931]
[1766540147732,0.02733112,87655.0,87650.0,0.13071901]
[1766540147932,0.02733112,87655.0,87650.0,0.11931]
[1766540148424,0.02733112,87655.0,87650.0,0.13071901]
[1766540148587,0.02733112,87655.0,87651.0,0.01140888]
[1766540148996,0.02733112,87655.0,87650.0,0.13071901]
[1766540149229,0.02733112,87655.0,87651.0,0.01140888]
[1766540149440,0.02733112,87655.0,87650.0,0.13071901]
[1766540149778,0.02733112,87655.0,87650.0,0.11931]
[1766540152959,0.03873948,87655.0,87650.0,0.11931]
[1766540153159,0.02733112,87655.0,87650.0,0.11931]
[1766540155725,0.02733112,87655.0,87647.0,0.0114094]
[1766540155909,0.02733112,87655.0,87648.0,0.01140927]
[1766540158048,0.02284823,87656.0,87648.0,0.01140927]
[1766540158253,0.02284823,87656.0,87647.0,0.0114094]
[1766540159420,0.02284823,87656.0,87648.0,0.01140927]
[1766540160178,0.01144,87656.0,87648.0,0.01140927]
[1766540160376,0.01144,87656.0,87649.0,0.01140914]
[1766540160692,0.01144,87656.0,87648.0,0.01140927]
[1766540160899,0.01144,87656.0,87649.0,0.01140914]
[1766540161217,0.01144,87656.0,87648.0,0.01140927]
[1766540161460,0.01144,87656.0,87649.0,0.01140914]
[1766540163870,0.01144,87656.0,87645.0,0.06845787]
[1766540164098,0.01140849,87654.0,87644.0,0.14215979]
[1766540164246,0.01140836,87655.0,87646.0,0.01140953]
[1766540164442,0.025,88312.0,87645.0,0.01140966]
[1766540164443,0.01140628,87671.0,87662.0,0.12113]
[1766540164641,0.01140589,87674.0,87663.0,0.01140732]
[1766540164842,0.01140615,87672.0,87663.0,0.01140732]
[1766540165057,0.01140628,87671.0,87662.0,0.13253745]
[1766540165249,0.01140615,87672.0,87663.0,0.01140732]
[1766540165448,0.01140602,87673.0,87663.0,0.01140732]
[1766540165853,0.01140615,87672.0,87664.0,0.01140719]
[1766540166503,0.01140615,87672.0,87663.0,0.01140732]
[1766540166683,0.01140602,87673.0,87664.0,0.01140719]
[1766540167204,0.01140589,87674.0,87665.0,0.01140706]
[1766540167407,0.01144,87675.0,87665.0,0.01140706]
[1766540167408,0.01144,87675.0,87666.0,0.01140693]
[1766540167604,0.01140589,87674.0,87665.0,0.01140706]
[1766540168332,0.02284575,87675.0,87666.0,0.01140693]
[1766540168453,0.01140589,87674.0,87666.0,0.01140693]
[1766540168907,0.02284575,87675.0,87666.0,0.01140693]
[1766540169318,0.02284575,87675.0,87667.0,0.0114068]
[1766540169542,0.02284575,87675.0,87666.0,0.01140693]
[1766540170911,0.02284575,87675.0,87666.0,0.13253693]
[1766540171107,0.01140536,87678.0,87668.0,0.01140667]
[1766540171309,0.01140536,87678.0,87666.0,0.13253693]
[1766540171310,0.01140549,87677.0,87666.0,0.12113]
[1766540171609,0.01140562,87676.0,87668.0,0.01140667]
[1766540171814,0.02284536,87678.0,87668.0,0.01140667]
[1766540172030,0.01140562,87676.0,87667.0,0.0114068]
[1766540172203,0.019257,87678.0,87669.0,0.01140654]
[1766540172401,0.019257,87678.0,87670.0,0.01140641]
[1766540172402,0.00785164,87678.0,87670.0,0.01140641]
[1766540172948,0.019257,87678.0,87669.0,0.13253654]
[1766540173149,0.00785164,87678.0,87670.0,0.01140641]
[1766540173730,0.00785164,87678.0,87670.0,0.13253641]
[1766540174334,0.01140432,87686.0,87677.0,0.01140549]
[1766540174654,0.01140432,87686.0,87674.0,0.05702926]
[1766540174655,0.01140471,87683.0,87674.0,0.01140589]
[1766540174815,0.02737195,87685.0,87675.0,0.01140575]
[1766540175018,0.03881195,87685.0,87679.0,0.01140523]
[1766540175331,0.03881195,87685.0,87680.0,0.0114051]
[1766540175654,0.03881195,87685.0,87679.0,0.01140523]
[1766540176158,0.05701898,87691.0,87685.0,0.12168]
[1766540176159,0.01140367,87691.0,87685.0,0.12168]
[1766540176389,0.01140367,87691.0,87685.0,0.12113]
[1766540176597,0.05701762,87693.0,87683.0,0.01140471]
[1766540176765,0.06841505,87700.0,87688.0,0.01140406]
[1766540176969,0.01144,87699.0,87691.0,0.01140367]
[1766540177180,4.899e-05,87700.0,87696.0,0.01140302]
[1766540177352,4.899e-05,87700.0,87697.0,0.01140289]
[1766540177755,4.899e-05,87700.0,87693.0,0.02284341]
[1766540177960,0.01145149,87700.0,87693.0,0.01144]
[1766540178858,4.899e-05,87700.0,87693.0,0.01144]
[1766540179065,9.9e-07,87700.0,87695.0,0.13253315]
[1766540179402,9.9e-07,87700.0,87697.0,0.01140289]
[1766540179604,9.9e-07,87700.0,87698.0,0.06845384]
[1766540180433,9.9e-07,87700.0,87699.0,0.12113]
[1766540181677,9.9e-07,87700.0,87699.0,0.121083]
[1766540183661,0.01140068,87714.0,87703.0,0.01140211]
[1766540183964,0.00035795,87714.0,87709.0,0.01140133]
[1766540184340,0.00035795,87714.0,87708.0,0.01140146]
[1766540184771,0.00035795,87714.0,87709.0,0.13253133]
[1766540184994,0.00035795,87714.0,87709.0,0.12113]
[1766540185388,9.5e-07,87714.0,87712.0,0.12113]
[1766540185564,0.0004,87726.0,87717.0,0.13253029]
[1766540185768,0.0004,87726.0,87721.0,0.13252977]
[1766540185988,0.0004,87726.0,87722.0,0.02733112]
[1766540186205,0.000357,87722.0,87721.0,0.12113]
[1766540186622,0.0004,87726.0,87721.0,0.13252977]
[1766540187281,0.0004,87726.0,87721.0,0.12113]
[1766540187685,0.0004,87726.0,87721.0,0.13252977]
[1766540188108,0.0004,87726.0,87724.0,0.00019199]
[1766540188310,1e-08,87726.0,87725.0,0.05699629]
[1766540189214,0.04584,87739.0,87731.0,0.12144]
[1766540189422,0.00030734,87739.0,87731.0,0.12144]
[1766540189622,0.00030734,87739.0,87731.0,0.18983069]
[1766540189824,0.00030734,87739.0,87736.0,0.01139782]
[1766540190063,0.00030734,87739.0,87735.0,0.05698949]
[1766540190064,0.000549,87736.0,87733.0,0.01139821]
[1766540190221,0.00030734,87739.0,87734.0,0.01139808]
[1766540190615,0.0004,87745.0,87739.0,0.01139744]
[1766540191153,0.0004,87745.0,87739.0,0.13283744]
[1766540191379,0.0004,87745.0,87739.0,0.12144]
[1766540191848,0.0004,87745.0,87740.0,0.01139731]
[1766540192503,0.01139614,87749.0,87741.0,0.12144]
[1766540193640,0.0113964,87747.0,87741.0,0.12144]
[1766540193848,3.215e-05,87751.0,87745.0,0.12144]
[1766540194050,3.215e-05,87751.0,87747.0,0.1328364]
[1766540194206,3.215e-05,87751.0,87748.0,0.01139627]
[1766540194419,3.215e-05,87751.0,87748.0,0.13237727]
[1766540194637,3.215e-05,87751.0,87748.0,0.1899075]
[1766540194819,3.215e-05,87751.0,87748.0,0.13292627]
[1766540195431,3.215e-05,87751.0,87748.0,0.12153]
[1766540196039,3.215e-05,87751.0,87748.0,0.13292627]
[1766540197195,0.0006811,87759.0,87752.0,0.13292575]
[1766540197424,0.0006811,87759.0,87755.0,0.01139536]
[1766540197896,0.0006811,87759.0,87754.0,0.01139549]
[1766540198247,0.0006811,87759.0,87753.0,0.02733112]
[1766540198444,0.0006811,87759.0,87753.0,0.03872674]
[1766540198845,0.0006811,87759.0,87755.0,0.01139536]
[1766540199044,0.0004,87764.0,87756.0,0.01139523]
[1766540199358,0.0004,87764.0,87757.0,0.12153]
[1766540199359,0.01179419,87764.0,87757.0,0.12153]
[1766540199558,0.01179419,87764.0,87757.0,0.12098]
[1766540199783,0.01139445,87762.0,87757.0,0.12098]
[1766540200194,0.0004,87764.0,87757.0,0.12098]
[1766540200369,0.0006,87765.0,87761.0,0.01139458]
[1766540200574,0.000451,87765.0,87760.0,0.12153]
[1766540200775,0.00031305,87761.0,87760.0,0.12153]
[1766540200978,3.05e-06,87761.0,87760.0,0.12153]
[1766540201895,3.05e-06,87761.0,87760.0,0.12104726]
[1766540204205,3.05e-06,87761.0,87760.0,0.12049826]
[1766540205362,3.05e-06,87761.0,87760.0,0.10374573]
[1766540210109,3.05e-06,87761.0,87757.0,0.01184506]
[1766540210311,0.05697229,87762.0,87757.0,0.01184506]
[1766540210527,0.01139445,87762.0,87757.0,0.01184506]
[1766540210729,0.01139432,87763.0,87757.0,0.01184506]
[1766540211151,0.01139419,87764.0,87757.0,0.01184506]
[1766540213383,0.01139419,87764.0,87755.0,0.01139536]
[1766540213585,0.000451,87765.0,87757.0,0.0113951]
[1766540213882,0.01184506,87765.0,87757.0,0.0113951]
[1766540214080,0.000451,87765.0,87757.0,0.0113951]
[1766540214346,0.01184506,87765.0,87757.0,0.0113951]
[1766540214490,0.000451,87765.0,87757.0,0.0113951]
[1766540214684,0.000451,87765.0,87758.0,0.12153]
[1766540214900,0.01184506,87765.0,87758.0,0.12153]
[1766540215297,0.000451,87765.0,87758.0,0.12153]
[1766540216138,0.01184506,87765.0,87758.0,0.12153]
[1766540216337,0.000451,87765.0,87758.0,0.12153]
[1766540216890,0.000451,87765.0,87758.0,0.13292497]
[1766540217092,0.000451,87765.0,87758.0,0.12153]
[1766540217298,0.05762022,87769.0,87758.0,0.12153]
[1766540217493,0.05762022,87769.0,87760.0,0.12153]
[1766540217494,0.00075955,87769.0,87760.0,0.12153]
[1766540217700,0.05696955,87767.0,87760.0,0.12153]
[1766540217900,0.01139406,87765.0,87760.0,0.12153]
[1766540218258,0.01139419,87764.0,87760.0,0.12153]
[1766540218598,0.01139432,87763.0,87760.0,0.12153]
[1766540220374,0.01139419,87764.0,87760.0,0.12153]
[1766540220996,0.01139406,87765.0,87760.0,0.12153]
[1766540221476,0.01139393,87766.0,87760.0,0.12153]
[1766540221719,0.0113938,87767.0,87760.0,0.12153]
[1766540221898,0.01139419,87764.0,87760.0,0.12153]
[1766540222712,0.01139406,87765.0,87760.0,0.12153]
[1766540223668,0.01139419,87764.0,87755.0,0.43218249]
[1766540223874,0.01139432,87763.0,87755.0,0.54658249]
[1766540224277,0.01139432,87763.0,87755.0,0.1144]
[1766540225079,0.01139419,87764.0,87755.0,0.12579536]
[1766540226248,0.0246072,87766.0,87755.0,0.12579536]
[1766540226369,0.01139367,87768.0,87764.0,0.000549]
[1766540226770,0.00075955,87769.0,87765.0,0.01139406]
[1766540226980,0.0004,87773.0,87765.0,0.01139406]
[1766540226981,0.0004,87773.0,87770.0,0.1144]
[1766540227227,0.0004,87773.0,87772.0,0.05696577]
[1766540227402,0.0004,87773.0,87770.0,0.18276016]
[1766540227599,0.0004,87773.0,87770.0,0.12579341]
[1766540228029,0.0004,87776.0,87773.0,0.01179302]
[1766540228232,0.0002,87778.0,87773.0,0.0004]
[1766540228433,0.01159237,87778.0,87773.0,0.0004]
[1766540228613,0.0002,87778.0,87769.0,0.01139354]
[1766540228812,0.0002,87778.0,87770.0,0.01139341]
[1766540229146,0.01159237,87778.0,87768.0,0.01139367]
[1766540229691,0.0002,87778.0,87769.0,0.01139354]
[1766540229890,0.0113925,87777.0,87768.0,0.01139367]
[1766540231260,0.01159237,87778.0,87768.0,0.01139367]
[1766540231962,0.01159237,87778.0,87769.0,0.01139354]
[1766540232314,0.01159237,87778.0,87769.0,0.01091975]
[1766540232548,0.00024918,87777.0,87770.0,0.01139341]
[1766540233103,0.00024918,87777.0,87769.0,0.01091975]
[1766540233306,0.00024918,87777.0,87766.0,0.01139393]
[1766540233514,0.01139263,87776.0,87767.0,0.1144]
[1766540234046,0.01164168,87777.0,87767.0,0.1257938]
[1766540234397,0.01139263,87776.0,87767.0,0.55797629]
[1766540235137,0.01139276,87775.0,87767.0,0.54658249]
[1766540235305,0.01139315,87772.0,87767.0,0.1144]
[1766540235487,0.01139289,87774.0,87767.0,0.1144]
[1766540236573,0.01139276,87775.0,87767.0,0.1144]
[1766540237008,0.01139289,87774.0,87765.0,0.02283406]
[1766540237217,0.01139302,87773.0,87765.0,0.44362249]
[1766540237638,0.01139315,87772.0,87765.0,0.44362249]
[1766540237813,0.01139302,87773.0,87765.0,0.44362249]
[1766540238014,0.01139289,87774.0,87766.0,0.01139393]
[1766540238197,0.01139289,87774.0,87765.0,0.56941655]
[1766540238400,0.01139289,87774.0,87765.0,0.45501655]
[1766540238753,0.01139289,87774.0,87766.0,0.1144]
[1766540238960,0.01139276,87775.0,87766.0,0.12579393]
[1766540239153,0.01139276,87775.0,87766.0,0.1144]
[1766540239362,0.01139276,87775.0,87766.0,0.12579393]
[1766540239564,0.01139289,87774.0,87766.0,0.1144]
[1766540239720,0.01139302,87773.0,87766.0,0.1144]
[1766540239925,0.01139354,87769.0,87759.0,0.01139302]
[1766540240131,0.01139471,87760.0,87757.0,0.01144]
[1766540240310,0.01139458,87761.0,87751.0,0.02283588]
[1766540240645,0.01139458,87761.0,87752.0,0.01139575]
[1766540241166,0.01139432,87763.0,87753.0,0.01139562]
[1766540241167,0.01139445,87762.0,87753.0,0.01139562]
[1766540241666,0.01139445,87762.0,87752.0,0.01139575]
[1766540241667,0.01139458,87761.0,87752.0,0.01139575]
[1766540241850,0.01139458,87761.0,87753.0,0.01139562]
[1766540242018,0.01139432,87763.0,87753.0,0.01139562]
[1766540242216,0.01139419,87764.0,87754.0,0.01139549]
[1766540242496,0.01139432,87763.0,87753.0,0.01139562]
[1766540242684,0.0114,87763.0,87754.0,0.01139549]
[1766540242820,0.02279432,87763.0,87754.0,0.01139549]
[1766540243129,0.01139458,87761.0,87753.0,0.01139562]
[1766540243333,0.01139458,87761.0,87752.0,0.01139575]
[1766540244472,0.01139445,87762.0,87753.0,0.01139562]
[1766540245476,0.01139445,87762.0,87754.0,0.01139549]
[1766540245800,0.01139445,87762.0,87753.0,0.01139562]
[1766540245976,0.01139445,87762.0,87754.0,0.01139549]
[1766540246676,0.01139445,87762.0,87753.0,0.01139562]
[1766540247847,0.01139445,87762.0,87754.0,0.01139549]
[1766540248054,0.02279432,87763.0,87754.0,0.01139549]
[1766540248244,0.01139445,87762.0,87754.0,0.01139549]
[1766540248455,0.02279432,87763.0,87754.0,0.01139549]
[1766540251689,0.01139471,87760.0,87751.0,0.02283588]
[1766540251899,0.02279432,87763.0,87751.0,0.02283588]
[1766540251900,0.0114,87763.0,87755.0,0.01139536]
[1766540252109,0.0114,87763.0,87754.0,0.01139549]
[1766540252306,0.0114,87763.0,87755.0,0.01139536]
[1766540252307,0.02279432,87763.0,87755.0,0.01139536]
[1766540252493,0.02279432,87763.0,87754.0,0.01139549]
[1766540253098,0.01139445,87762.0,87753.0,0.01139562]
[1766540253330,0.01139458,87761.0,87752.0,0.13472575]
[1766540253495,0.01139445,87762.0,87753.0,0.01139562]
[1766540255282,0.01139458,87761.0,87752.0,0.12333]
[1766540255486,0.01139458,87761.0,87752.0,0.13472575]
[1766540255755,0.01139471,87760.0,87752.0,0.13472575]
[1766540257544,0.01139458,87761.0,87752.0,0.13472575]
[1766540259199,0.02279432,87763.0,87753.0,0.01139562]
[1766540259693,0.01139445,87762.0,87752.0,0.12499575]
[1766540259914,0.0114,87763.0,87758.0,0.12499497]
[1766540260148,0.0114,87769.0,87763.0,0.12499432]
[1766540260316,0.00024918,87777.0,87769.0,0.01139354]
[1766540260512,0.01164168,87777.0,87770.0,0.00113641]
[1766540260680,0.01139263,87776.0,87769.0,0.1136]
[1766540260875,0.01139276,87775.0,87769.0,0.1136]
[1766540262081,0.01139289,87774.0,87769.0,0.1136]
[1766540262414,0.01139276,87775.0,87769.0,0.1136]
[1766540262960,0.01139263,87776.0,87769.0,0.1136]
[1766540263169,0.01139315,87772.0,87769.0,0.1136]
[1766540263372,0.000549,87769.0,87764.0,0.0114]
[1766540263653,0.01139315,87772.0,87764.0,0.0114]
[1766540263786,0.01139328,87771.0,87764.0,0.0114]
[1766540263994,0.01139354,87769.0,87764.0,0.0114]
[1766540264394,0.01139367,87768.0,87764.0,5.81e-06]
[1766540264593,0.01139367,87768.0,87761.0,0.0114]
[1766540264928,0.00055,87761.0,87751.0,0.07977476]
[1766540265086,0.00055,87761.0,87754.0,0.0114]
[1766540265277,0.00055,87761.0,87753.0,0.00010724]
[1766540265278,0.01139471,87760.0,87753.0,0.00010724]
[1766540266090,0.01139445,87762.0,87753.0,0.00010724]
[1766540266608,0.01139458,87761.0,87753.0,0.00010724]
[1766540267741,0.01139471,87760.0,87753.0,0.00010724]
[1766540268546,0.01139484,87759.0,87753.0,2.4e-07]
[1766540269296,0.01139497,87758.0,87753.0,2.4e-07]
[1766540269544,0.01139484,87759.0,87753.0,2.4e-07]
[1766540269745,0.01139471,87760.0,87753.0,2.4e-07]
[1766540269946,0.01139484,87759.0,87753.0,2.4e-07]
[1766540272741,0.01139471,87760.0,87753.0,2.4e-07]
[1766540272942,0.01139471,87760.0,87753.0,0.01140024]
[1766540273101,0.01139484,87759.0,87753.0,0.01140024]
[1766540274158,0.01139471,87760.0,87753.0,0.01140024]
[1766540274507,0.01139458,87761.0,87753.0,0.01140024]
[1766540274706,0.01139471,87760.0,87753.0,0.01140024]
[1766540275141,0.01139484,87759.0,87753.0,0.01140024]
[1766540275621,0.01139471,87760.0,87753.0,0.01140024]
[1766540278138,0.01139484,87759.0,87753.0,0.01140024]
[1766540282555,0.01139497,87758.0,87753.0,0.01140024]
[1766540282726,0.01139588,87751.0,87742.0,0.12357]
[1766540282975,0.01139601,87750.0,87746.0,0.0114]
[1766540283185,0.06837301,87754.0,87746.0,0.0114]
[1766540283392,0.01139562,87753.0,87746.0,0.0114]
[1766540283899,0.01139549,87754.0,87746.0,0.0114]
[1766540284346,0.01139562,87753.0,87746.0,0.0114]
[1766540284467,0.02279523,87756.0,87746.0,0.0114]
[1766540284868,0.01139536,87755.0,87746.0,0.0114]
[1766540285365,0.01139549,87754.0,87746.0,0.0114]
[1766540286309,0.01139549,87754.0,87746.0,0.02279653]
[1766540286502,0.01139549,87754.0,87746.0,0.0114]
[1766540287288,0.01139536,87755.0,87746.0,0.02279653]
[1766540287694,0.01139562,87753.0,87746.0,0.0114]
[1766540288462,0.01139588,87751.0,87746.0,0.0114]
[1766540288753,0.01139692,87743.0,87740.0,3.06e-06]
[1766540289049,0.01139744,87739.0,87732.0,0.0114]
[1766540289422,0.01139757,87738.0,87732.0,0.0114]
[1766540289774,0.01139769,87737.0,87732.0,0.0114]
[1766540290104,0.01139782,87736.0,87732.0,0.0114]
[1766540290316,0.01139769,87737.0,87732.0,0.0114]
[1766540290877,0.01183134,87732.0,87723.0,0.01139951]
[1766540291078,0.01183134,87732.0,87721.0,0.0114]
[1766540291079,0.01139873,87729.0,87721.0,0.0114]
[1766540291196,0.03872998,87728.0,87718.0,0.01140016]
[1766540291397,0.01139912,87726.0,87717.0,0.01140029]
[1766540291625,0.01139899,87727.0,87718.0,0.01140016]
[1766540291830,0.01139912,87726.0,87717.0,0.01140029]
[1766540292048,0.01139912,87726.0,87713.0,0.1027177]
[1766540292049,0.01139951,87723.0,87713.0,0.03431288]
[1766540292220,0.000433,87717.0,87713.0,0.0001]
[1766540292614,0.0114,87720.0,87713.0,0.01150081]
[1766540293023,0.0114,87720.0,87714.0,0.01140068]
[1766540293680,0.0114,87720.0,87713.0,0.01150081]
[1766540293884,0.0114,87720.0,87714.0,0.01140068]
[1766540294607,0.0114,87720.0,87713.0,0.0001]
[1766540294770,0.0227999,87720.0,87713.0,0.0001]
[1766540294978,0.0114,87720.0,87713.0,0.0001]
[1766540295561,0.01140003,87719.0,87713.0,0.0001]
[1766540295756,0.0227999,87720.0,87713.0,0.0001]
[1766540295996,0.0114,87720.0,87714.0,0.01140068]
[1766540296382,0.03090316,87757.0,87724.0,0.12357]
[1766540296383,0.00010718,87729.0,87724.0,0.12357]
[1766540296583,0.0114,87730.0,87724.0,0.12357]
[1766540297037,0.0114,87730.0,87724.0,0.13496938]
[1766540297239,0.0114,87730.0,87724.0,0.12357]
[1766540297809,0.011284,87730.0,87727.0,0.01139899]
[1766540298831,0.0001,87733.0,87728.0,0.01139886]
[1766540299031,0.0001,87733.0,87729.0,0.01139873]
[1766540299199,0.0114,87732.0,87727.0,0.01139899]
[1766540299393,0.0114,87732.0,87728.0,0.01139886]
[1766540299896,0.0114,87732.0,87727.0,0.01139899]
[1766540300326,0.0114,87732.0,87725.0,0.01139925]
[1766540302009,0.0114,87732.0,87724.0,0.13496938]
[1766540303475,0.0114,87732.0,87725.0,0.01139925]
[1766540303669,0.0114,87732.0,87724.0,0.13496938]
[1766540304098,0.01139847,87731.0,87720.0,0.06839933]
[1766540304299,0.05700278,87716.0,87713.0,0.0001]
[1766540304437,0.0113999,87720.0,87713.0,0.12367]
[1766540304642,0.01140016,87718.0,87713.0,0.0001]
[1766540304996,0.01140016,87718.0,87712.0,0.01144]
[1766540305156,0.01140003,87719.0,87712.0,0.01144]
[1766540306171,0.01140016,87718.0,87712.0,0.01144]
[1766540306372,0.000442,87712.0,87709.0,0.01140133]
[1766540306595,0.000442,87712.0,87709.0,0.02284133]
[1766540306759,0.01140016,87718.0,87709.0,0.02284133]
[1766540306951,0.01140029,87717.0,87709.0,0.01144]
[1766540307356,0.01145311,87718.0,87709.0,0.02284133]
[1766540307604,0.01145311,87718.0,87709.0,0.010998]
[1766540307808,5.295e-05,87718.0,87710.0,0.0114012]
[1766540308753,0.01145311,87718.0,87709.0,0.02239933]
[1766540308883,5.295e-05,87718.0,87710.0,0.0114012]
[1766540309097,5.295e-05,87718.0,87711.0,0.01140107]
[1766540309295,5.295e-05,87718.0,87710.0,0.0114012]
[1766540309528,0.01145311,87718.0,87708.0,0.02284146]
[1766540309735,0.01145311,87718.0,87711.0,0.01140003]
[1766540309911,5.295e-05,87718.0,87711.0,0.01140003]
[1766540310944,0.01140029,87717.0,87711.0,0.01140003]
[1766540311259,0.01140042,87716.0,87708.0,0.01144]
[1766540311562,0.01140055,87715.0,87708.0,0.01144]
[1766540311940,0.01140081,87713.0,87708.0,0.01144]
[1766540312213,0.00055,87708.0,87705.0,0.03421671]
[1766540312416,0.01140081,87713.0,87701.0,0.12839448]
[1766540312618,0.01140068,87714.0,87706.0,0.01140172]
[1766540312780,0.01140042,87716.0,87703.0,0.02280292]
[1766540312781,0.0001,87711.0,87707.0,0.01140159]
[1766540312975,0.01140042,87716.0,87707.0,0.01140159]
[1766540313180,0.02284029,87717.0,87707.0,0.01140159]
[1766540314280,0.01140042,87716.0,87712.0,0.000123]
[1766540314519,0.02284029,87717.0,87712.0,2.3e-05]
[1766540314820,0.01140042,87716.0,87712.0,2.3e-05]
[1766540315363,0.01140055,87715.0,87712.0,2.3e-05]
[1766540316416,0.08433521,87713.0,87712.0,2.3e-05]
[1766540317428,0.08433521,87713.0,87701.0,0.11699211]
[1766540317429,0.01140159,87707.0,87701.0,0.11699211]
[1766540317641,0.01140159,87707.0,87701.0,0.01144]
[1766540317794,0.01140172,87706.0,87701.0,0.01144]
[1766540317993,0.01140159,87707.0,87698.0,0.01140276]
[1766540318711,0.01140146,87708.0,87698.0,0.01140276]
[1766540318916,0.01140146,87708.0,87699.0,0.01140263]
[1766540319109,0.01140159,87707.0,87698.0,0.01140276]
[1766540319777,0.01140146,87708.0,87699.0,0.01140263]
[1766540319980,0.01140146,87708.0,87695.0,0.16320128]
[1766540319981,0.01140159,87707.0,87695.0,0.16320128]
[1766540320175,0.01140159,87707.0,87680.0,0.0456]
[1766540320176,0.02788112,87699.0,87689.0,0.01140393]
[1766540320432,0.05072375,87699.0,87688.0,0.01140406]
[1766540320635,0.01140302,87696.0,87686.0,0.03422377]
[1766540320836,0.01140302,87696.0,87685.0,0.12894445]
[1766540321052,0.01140302,87696.0,87686.0,0.01140432]
[1766540321362,0.01140289,87697.0,87688.0,0.01140406]
[1766540321513,0.01140302,87696.0,87687.0,0.01140419]
[1766540322123,0.01140315,87695.0,87684.0,0.01144]
[1766540322301,0.01140406,87688.0,87684.0,0.01144]
[1766540322501,0.0114038,87690.0,87678.0,0.11388]
[1766540322502,0.01140393,87689.0,87678.0,0.11388]
[1766540322773,0.01140432,87686.0,87678.0,0.13672406]
[1766540323106,0.01140406,87688.0,87678.0,0.14812942]
[1766540323305,0.01140419,87687.0,87678.0,0.14812942]
[1766540323521,0.01140419,87687.0,87678.0,0.14848737]
[1766540324521,0.01140393,87689.0,87679.0,0.01140523]
[1766540324766,0.01140406,87688.0,87678.0,0.14848737]
[1766540325761,0.01140445,87685.0,87678.0,0.02320201]
[1766540325912,0.01140432,87686.0,87678.0,0.02320201]
[1766540326109,0.05702613,87680.0,87678.0,2.01e-06]
[1766540326707,0.01140602,87673.0,87668.0,0.01154]
[1766540326927,0.01140589,87674.0,87668.0,0.01158899]
[1766540327363,0.01140628,87671.0,87668.0,0.00014899]
[1766540327974,0.06843773,87671.0,87668.0,0.00014899]
[1766540328197,0.05703268,87670.0,87668.0,0.00014899]
[1766540329406,0.06843773,87671.0,87668.0,0.00014899]
[1766540329582,0.01140602,87673.0,87671.0,0.000549]
[1766540329781,0.01140615,87672.0,87668.0,0.00014899]
[1766540330110,0.01140628,87671.0,87668.0,0.00014899]
[1766540331715,0.01140628,87671.0,87661.0,0.04564147]
[1766540331716,0.01140719,87664.0,87661.0,0.03253731]
[1766540331913,0.01140719,87664.0,87654.0,0.11388]
[1766540331914,0.000401,87661.0,87654.0,0.11388]
[1766540332284,0.0114081,87657.0,87651.0,0.0001]
[1766540332488,0.01140836,87655.0,87651.0,0.0001]
[1766540332598,0.07988742,87659.0,87651.0,0.0001]
[1766540332796,0.01140797,87658.0,87651.0,0.0001]
[1766540333048,0.01144,87659.0,87651.0,0.0001]
[1766540333218,0.02733112,87670.0,87661.0,0.05703751]
[1766540333445,0.02733112,87670.0,87659.0,0.01140784]
[1766540333446,0.01144,87669.0,87659.0,0.06844698]
[1766540333599,0.01144,87669.0,87660.0,0.01140771]
[1766540333807,0.01144,87669.0,87662.0,0.01140745]
[1766540334008,0.01144,87669.0,87661.0,0.01140758]
[1766540334429,0.01144,87669.0,87660.0,0.01140771]
[1766540334647,0.0114068,87667.0,87658.0,0.11388]
[1766540334856,0.01140667,87668.0,87659.0,0.01140784]
[1766540335938,0.02284654,87669.0,87660.0,0.01140771]
[1766540337002,0.01140667,87668.0,87658.0,0.12528797]
[1766540337228,0.0114068,87667.0,87658.0,0.12528797]
[1766540337446,0.0114068,87667.0,87611.0,0.0002]
[1766540337447,0.01141187,87628.0,87611.0,0.0002]
[1766540337647,0.01141187,87628.0,87566.0,0.0002]
[1766540337648,0.0114137,87614.0,87599.0,0.03425711]
[1766540337778,0.02733112,87604.0,87599.0,0.03461366]
[1766540337976,0.02733112,87604.0,87590.0,0.11388]
[1766540337977,0.00595592,87603.0,87600.0,0.05708]
[1766540338292,0.00595592,87603.0,87601.0,0.02283812]
[1766540338293,0.00631335,87603.0,87601.0,0.02283812]
[1766540338494,0.01141461,87607.0,87602.0,0.11471]
[1766540338692,0.01141487,87605.0,87602.0,0.11481739]
[1766540338902,0.06848923,87605.0,87602.0,0.01773113]
[1766540339100,0.011415,87604.0,87603.0,0.04564]
[1766540339313,0.011415,87604.0,87603.0,0.01148145]
[1766540339513,0.011415,87604.0,87601.0,0.12101351]
[1766540339514,0.05707567,87603.0,87601.0,0.11471]
[1766540339854,0.05718284,87603.0,87602.0,0.05708]
[1766540340383,0.00010717,87603.0,87602.0,0.17179]
[1766540340813,0.01141578,87598.0,87594.0,0.11471]
[1766540341015,0.00010717,87603.0,87598.0,0.11471]
[1766540341216,0.01141539,87601.0,87598.0,0.11471]
[1766540341615,0.22829632,87606.0,87595.0,0.05708]
[1766540341616,0.05707068,87611.0,87600.0,0.11471]
[1766540341848,0.06267887,87627.0,87594.0,0.11471]
[1766540342040,0.02733112,87629.0,87594.0,0.11471]
[1766540342041,0.05707632,87602.0,87601.0,0.03425926]
[1766540342261,0.01141591,87597.0,87594.0,0.11506743]
[1766540342462,0.39436613,87611.0,87581.0,0.11471]
[1766540342463,0.01141682,87590.0,87581.0,0.11471]
[1766540342665,0.00035816,87590.0,87589.0,0.03426282]
[1766540342881,0.01141604,87596.0,87589.0,0.04570282]